fUST/lending_fUST_20240705
["ID","MTS","AMOUNT","RATE_DAILY","PERIOD"]
[331199876,1720131071729,-290.8043597,0.00022524,2]
[331199877,1720131071739,-293.1949975,0.00022524,2]
[331199878,1720131071749,-293.2811636,0.00022524,2]
[331199879,1720131071758,-293.2811636,0.00022524,2]
[331199880,1720131071767,-293.2811636,0.00022524,2]
[331199881,1720131071776,-293.2811636,0.00022524,2]
[331199882,1720131071786,-293.2811636,0.00022524,2]
[331199883,1720131071795,-292.9285416,0.00022524,2]
[331199884,1720131071805,-1687.08534912,0.00022942,2]
[331199885,1720131071814,-238.40516904,0.00023,2]
[331199886,1720131071824,-11345.08395463,0.00023,2]
[331199887,1720131071833,-3715.0,0.00023,3]
[331199888,1720131071843,-200.0,0.00023,2]
[331199889,1720131071852,-3104.32783023,0.00023003,2]
[331199890,1720131071862,-158.03542217,0.00023005,2]
[331199891,1720131071871,-153.20820484,0.00023007,2]
[331199892,1720131071880,-151.0,0.00023032,7]
[331199893,1720131071890,-151.0,0.00023032,7]
[331199894,1720131071899,-153.20820484,0.00023032,2]
[331199895,1720131071908,-356.56697814,0.0002304,2]
[331199896,1720131071917,-2204.16917057,0.00023052,2]
[331199897,1720131071927,-356.56697814,0.00023073,2]
[331199898,1720131071937,-1001.44305012,0.00023076,2]
[331199899,1720131071947,-2204.16917057,0.00023077,2]
[331199900,1720131071958,-1001.44305012,0.00023079,2]
[331199901,1720131071967,-158.03542217,0.000231,2]
[331199902,1720131071976,-356.56697814,0.00023112,2]
[331199903,1720131071987,-150.90270468,0.00023113,2]
[331199904,1720131071997,-150.90270468,0.00023115,2]
[331199905,1720131072006,-2204.16917057,0.00023127,2]
[331199906,1720131072016,-1001.44305012,0.00023129,2]
[331199907,1720131072024,-1001.44305012,0.00023137,2]
[331199908,1720131072036,-1284.25398851,0.00023143,2]
[331199909,1720131072046,-2204.16917057,0.00023172,2]
[331199910,1720131072055,-153.0,0.00023173,2]
[331199911,1720131072064,-153.0,0.00023173,2]
[331199912,1720131072074,-153.0,0.00023173,2]
[331199913,1720131072083,-153.0,0.00023173,2]
[331199914,1720131072092,-153.0,0.00023173,2]
[331199915,1720131072101,-153.0,0.00023173,2]
[331199916,1720131072111,-153.0,0.00023173,2]
[331199917,1720131072122,-158.03542217,0.0002318,2]
[331199918,1720131072133,-3104.32783023,0.00023182,2]
[331199919,1720131072142,-2204.16917057,0.00023183,2]
[331199920,1720131072152,-235.773773,0.00023183,7]
[331199921,1720131072161,-235.773773,0.00023183,7]
[331199922,1720131072174,-160.552976,0.00023183,7]
[331199923,1720131072184,-160.552976,0.00023183,7]
[331199924,1720131072194,-2204.16917057,0.00023191,2]
[331199925,1720131072203,-2204.16917057,0.00023193,2]
[331199926,1720131072214,-150.90270468,0.00023194,2]
[331199927,1720131072225,-158.03542217,0.00023195,2]
[331199928,1720131072234,-356.56697814,0.00023198,2]
[331199929,1720131072245,-1001.44305012,0.00023207,2]
[331199930,1720131072254,-1001.44305012,0.00023213,2]
[331199931,1720131072264,-356.56697814,0.00023215,2]
[331199932,1720131072274,-153.20820484,0.00023237,2]
[331199933,1720131072283,-175.65987417,0.00023247,2]
[331199934,1720131072293,-3104.32783023,0.00023276,2]
[331199935,1720131072304,-2204.16917057,0.00023281,2]
[331199936,1720131072314,-150.90270468,0.00023297,2]
[331199937,1720131072324,-2204.16917057,0.00023302,2]
[331199938,1720131072335,-356.56697814,0.00023303,2]
[331199939,1720131072346,-1284.25398851,0.00023307,2]
[331199940,1720131072356,-153.20820484,0.0002331,2]
[331199941,1720131072365,-1284.25398851,0.00023328,2]
[331199942,1720131072375,-158.03542217,0.00023337,2]
[331199943,1720131072384,-356.56697814,0.00023349,2]
[331199944,1720131072393,-356.56697814,0.0002335,2]
[331199945,1720131072402,-2204.16917057,0.00023354,2]
[331199946,1720131072411,-1284.25398851,0.00023365,2]
[331199947,1720131072420,-356.56697814,0.00023373,2]
[331199948,1720131072429,-3104.32783023,0.00023375,2]
[331199949,1720131072439,-1284.25398851,0.00023379,2]
[331199950,1720131072447,-293.2811636,0.00023384,2]
[331199951,1720131072456,-293.2811636,0.00023384,2]
[331199952,1720131072466,-293.2811636,0.00023384,2]
[331199953,1720131072475,-293.2811636,0.00023384,2]
[331199954,1720131072484,-293.2811636,0.00023384,2]
[331199955,1720131072494,-293.2811636,0.00023384,2]
[331199956,1720131072503,-293.2811636,0.00023384,2]
[331199957,1720131072513,-293.2811636,0.00023384,2]
[331199958,1720131072522,-293.2811636,0.00023384,2]
[331199959,1720131072531,-293.2811636,0.00023384,2]
[331199960,1720131072541,-511.5084046,0.00023384,2]
[331199961,1720131072551,-158.03542217,0.00023389,2]
[331199962,1720131072560,-356.56697814,0.00023394,2]
[331199963,1720131072573,-158.6,0.000234,31]
[331199964,1720131072582,-2204.16917057,0.00023401,2]
[331199965,1720131072592,-3104.32783023,0.00023415,2]
[331199966,1720131072601,-1001.44305012,0.0002342,2]
[331199967,1720131072610,-1001.44305012,0.00023427,2]
[331199968,1720131072621,-1001.44305012,0.00023437,2]
[331199969,1720131072630,-1001.44305012,0.00023439,2]
[331199970,1720131072639,-153.20820484,0.0002344,2]
[331199971,1720131072648,-3104.32783023,0.0002344,2]
[331199972,1720131072660,-1284.25398851,0.00023443,2]
[331199973,1720131072671,-2420.55776569,0.00023453,2]
[331199974,1720131072681,-150.90270468,0.00023455,2]
[331199975,1720131072691,-153.20820484,0.00023459,2]
[331199976,1720131072700,-1284.25398851,0.00023478,2]
[331199977,1720131072709,-356.56697814,0.00023481,2]
[331199978,1720131072719,-1284.25398851,0.0002351,2]
[331199979,1720131072728,-1001.44305012,0.00023522,2]
[331199980,1720131072737,-1284.25398851,0.00023539,2]
[331199981,1720131072747,-1001.44305012,0.00023546,2]
[331199982,1720131072756,-159.56105704,0.00023549,2]
[331199983,1720131072765,-159.56105704,0.00023552,2]
[331199984,1720131072775,-1284.25398851,0.00023559,2]
[331199985,1720131072785,-166.175754,0.00023562,2]
[331199986,1720131072795,-3104.32783023,0.00023563,2]
[331199987,1720131072805,-356.56697814,0.0002357,2]
[331199988,1720131072815,-2204.16917057,0.0002357,2]
[331199989,1720131072824,-1001.44305012,0.00023587,2]
[331199990,1720131072834,-1284.25398851,0.00023587,2]
[331199991,1720131072843,-3104.32783023,0.00023602,2]
[331199992,1720131072852,-1284.25398851,0.00023623,2]
[331199993,1720131072861,-159.56105704,0.00023629,2]
[331199994,1720131072870,-150.90270468,0.0002363,2]
[331199995,1720131072880,-2204.16917057,0.00023639,2]
[331199996,1720131072890,-150.90270468,0.0002368,2]
[331199997,1720131072899,-1284.25398851,0.00023688,2]
[331199998,1720131072908,-150.90270468,0.00023701,2]
[331199999,1720131072918,-153.20820484,0.00023707,2]
[331200000,1720131072927,-158.03542217,0.00023708,2]
[331200001,1720131072936,-159.27156103,0.00023718,2]
[331200002,1720131072946,-356.56697814,0.00023734,2]
[331200003,1720131072956,-158.03542217,0.00023749,2]
[331200004,1720131072965,-1284.25398851,0.00023759,2]
[331200005,1720131072975,-3104.32783023,0.00023761,2]
[331200006,1720131072984,-1001.44305012,0.00023769,2]
[331200007,1720131072994,-153.20820484,0.0002377,2]
[331200008,1720131073003,-159.56105704,0.00023772,2]
[331200009,1720131073012,-1284.25398851,0.0002378,2]
[331200010,1720131073022,-158.03542217,0.00023794,2]
[331200011,1720131073031,-2204.16917057,0.00023799,2]
[331200012,1720131073040,-153.20820484,0.00023804,2]
[331200013,1720131073051,-3104.32783023,0.00023804,2]
[331200014,1720131073060,-153.20820484,0.0002381,2]
[331200015,1720131073070,-3104.32783023,0.00023811,2]
[331200016,1720131073080,-159.56105704,0.00023816,2]
[331200017,1720131073089,-2204.16917057,0.0002382,2]
[331200018,1720131073098,-1284.25398851,0.00023827,2]
[331200019,1720131073107,-356.56697814,0.00023831,2]
[331200020,1720131073116,-159.27156103,0.00023831,2]
[331200021,1720131073126,-356.56697814,0.00023834,2]
[331200022,1720131073135,-158.03542217,0.00023837,2]
[331200023,1720131073145,-153.20820484,0.00023841,2]
[331200024,1720131073155,-356.56697814,0.00023852,2]
[331200025,1720131073167,-153.20820484,0.00023862,2]
[331200026,1720131073177,-1001.44305012,0.00023878,2]
[331200027,1720131073186,-3104.32783023,0.00023885,2]
[331200028,1720131073196,-3104.32783023,0.00023895,2]
[331200029,1720131073206,-17400.187437,0.000239,2]
[331200030,1720131073216,-3104.32783023,0.00023913,2]
[331200031,1720131073225,-150.90270468,0.00023924,2]
[331200032,1720131073234,-1001.44305012,0.00023926,2]
[331200033,1720131073243,-158.03542217,0.00023927,2]
[331200034,1720131073254,-356.56697814,0.00023933,2]
[331200035,1720131073264,-159.56105704,0.00023937,2]
[331200036,1720131073274,-1284.25398851,0.00023943,2]
[331200037,1720131073283,-2204.16917057,0.00023955,2]
[331200038,1720131073292,-1284.25398851,0.00023963,2]
[331200039,1720131073302,-153.20820484,0.00023969,2]
[331200040,1720131073312,-356.56697814,0.00023976,2]
[331200041,1720131073321,-1284.25398851,0.00023979,2]
[331200042,1720131073330,-1284.25398851,0.00023982,2]
[331200043,1720131073339,-153.20820484,0.00023987,2]
[331200044,1720131073348,-3104.32783023,0.00023988,2]
[331200045,1720131073357,-153.20820484,0.00023989,2]
[331200046,1720131073367,-150.0,0.0002399,2]
[331200047,1720131073375,-153.0,0.00023995,2]
[331200048,1720131073384,-153.0,0.00023995,2]
[331200049,1720131073394,-153.0,0.00023995,2]
[331200050,1720131073403,-151.0,0.00023997,7]
[331200051,1720131073413,-151.0,0.00023997,7]
[331200052,1720131073422,-196.395045,0.00023997,7]
[331200053,1720131073431,-196.395045,0.00023997,7]
[331200054,1720131073441,-276.52699,0.00023997,7]
[331200055,1720131073450,-276.52699,0.00023997,7]
[331200056,1720131073459,-256.01999877,0.00024,30]
[331200057,1720131073468,-159.27156103,0.00024019,2]
[331200058,1720131073478,-1001.44305012,0.00024028,2]
[331200059,1720131073487,-150.90270468,0.00024036,2]
[331200060,1720131073497,-166.76986611,0.00024041,2]
[331200061,1720131073506,-1001.44305012,0.00024052,2]
[331200062,1720131073516,-3104.32783023,0.0002407,2]
[331200063,1720131073525,-356.56697814,0.00024095,2]
[331200064,1720131073535,-166.76986611,0.0002411,2]
[331200065,1720131073544,-3104.32783023,0.00024121,2]
[331200066,1720131073553,-153.20820484,0.00024126,2]
[331200067,1720131073563,-877.0,0.00024126,2]
[331200068,1720131073668,-1284.25398851,0.00024128,2]
[331200069,1720131073678,-1001.44305012,0.00024133,2]
[331200070,1720131073688,-153.20820484,0.00024134,2]
[331200071,1720131073698,-2204.16917057,0.00024136,2]
[331200072,1720131073708,-166.76986611,0.00024153,2]
[331200073,1720131073717,-2204.16917057,0.00024153,2]
[331200074,1720131073727,-153.20820484,0.00024164,2]
[331200075,1720131073737,-158.03542217,0.00024165,2]
[331200076,1720131073747,-175.65987417,0.00024165,2]
[331200077,1720131073757,-2204.16917057,0.00024167,2]
[331200078,1720131073766,-153.20820484,0.00024171,2]
[331200079,1720131073776,-153.20820484,0.00024189,2]
[331200080,1720131073786,-1001.44305012,0.00024201,2]
[331200081,1720131073796,-293.2811636,0.00024206,2]
[331200082,1720131073806,-293.2811636,0.00024206,2]
[331200083,1720131073816,-293.2811636,0.00024206,2]
[331200084,1720131073826,-293.2811636,0.00024206,2]
[331200085,1720131073835,-586.5623272,0.00024206,2]
[331200086,1720131073845,-3104.32783023,0.00024228,2]
[331200087,1720131073854,-1284.25398851,0.00024238,2]
[331200088,1720131073863,-3104.32783023,0.00024241,2]
[331200089,1720131073873,-159.56105704,0.00024243,2]
[331200090,1720131073883,-150.90270468,0.0002425,2]
[331200091,1720131073893,-2204.16917057,0.00024257,2]
[331200092,1720131073903,-3104.32783023,0.00024263,2]
[331200093,1720131073912,-150.90270468,0.00024266,2]
[331200094,1720131073922,-356.56697814,0.0002427,2]
[331200095,1720131073931,-1001.44305012,0.00024275,2]
[331200096,1720131073941,-1284.25398851,0.00024279,2]
[331200097,1720131073951,-356.56697814,0.00024285,2]
[331200098,1720131073960,-356.56697814,0.00024294,2]
[331200099,1720131073969,-356.56697814,0.00024314,2]
[331200100,1720131073979,-153.20820484,0.00024325,2]
[331200101,1720131073988,-150.90270468,0.00024344,2]
[331200102,1720131073998,-159.56105704,0.00024376,2]
[331200103,1720131074007,-2204.16917057,0.00024389,2]
[331200104,1720131074016,-153.20820484,0.00024411,2]
[331200105,1720131074025,-2204.16917057,0.00024427,2]
[331200106,1720131074035,-158.03542217,0.00024433,2]
[331200107,1720131074044,-158.03542217,0.00024438,2]
[331200108,1720131074053,-2204.16917057,0.00024467,2]
[331200109,1720131074062,-1001.44305012,0.00024473,2]
[331200110,1720131074072,-1001.44305012,0.00024491,2]
[331200111,1720131074081,-1001.44305012,0.00024505,2]
[331200112,1720131074091,-356.56697814,0.00024505,2]
[331200113,1720131074100,-3104.32783023,0.00024524,2]
[331200114,1720131074110,-3104.32783023,0.00024526,2]
[331200115,1720131074119,-1284.25398851,0.00024538,2]
[331200116,1720131074128,-175.65987418,0.00024564,2]
[331200117,1720131074138,-1001.44305012,0.00024572,2]
[331200118,1720131074147,-1284.25398851,0.00024575,2]
[331200119,1720131074157,-158.03542217,0.00024599,2]
[331200120,1720131074166,-3104.32783023,0.00024608,2]
[331200121,1720131074178,-150.90270468,0.00024614,2]
[331200122,1720131074188,-166.76986611,0.00024623,2]
[331200123,1720131074197,-2204.16917057,0.00024633,2]
[331200124,1720131074207,-1284.25398851,0.00024639,2]
[331200125,1720131074216,-2204.16917057,0.00024647,2]
[331200126,1720131074225,-1284.25398851,0.0002465,2]
[331200127,1720131074234,-150.90270468,0.00024653,2]
[331200128,1720131074244,-200.0,0.00024657,7]
[331200129,1720131074254,-200.0,0.00024657,7]
[331200130,1720131074263,-200.0,0.00024657,7]
[331200131,1720131074273,-200.0,0.00024657,7]
[331200132,1720131074282,-200.0,0.00024657,7]
[331200133,1720131074291,-200.0,0.00024657,7]
[331200134,1720131074301,-200.0,0.00024657,7]
[331200135,1720131074310,-200.0,0.00024657,7]
[331200136,1720131074320,-200.0,0.00024657,7]
[331200137,1720131074329,-200.0,0.00024657,7]
[331200138,1720131074338,-200.0,0.00024657,7]
[331200139,1720131074348,-200.0,0.00024657,7]
[331200140,1720131074357,-200.0,0.00024657,7]
[331200141,1720131074367,-200.0,0.00024657,7]
[331200142,1720131074376,-200.0,0.00024657,7]
[331200143,1720131074385,-200.0,0.00024657,7]
[331200144,1720131074395,-200.0,0.00024657,7]
[331200145,1720131074404,-200.0,0.00024657,7]
[331200146,1720131074414,-200.0,0.00024657,7]
[331200147,1720131074423,-200.0,0.00024657,7]
[331200148,1720131074433,-200.0,0.00024657,7]
[331200149,1720131074443,-191.75416091,0.00024657,7]
[331200150,1720131074452,-200.0,0.00024658,2]
[331200151,1720131074462,-380.0,0.00024658,2]
[331200152,1720131074471,-200.0,0.00024658,15]
[331200153,1720131074481,-3104.32783023,0.00024663,2]
[331200154,1720131074490,-1001.44305012,0.00024669,2]
[331200155,1720131074500,-3104.32783023,0.0002468,2]
[331200156,1720131074510,-151.0,0.0002469,7]
[331200157,1720131074520,-200.838559,0.0002469,7]
[331200158,1720131074530,-200.838559,0.0002469,7]
[331200159,1720131074540,-213.678957,0.0002469,7]
[331200160,1720131074550,-213.678957,0.0002469,7]
[331200161,1720131074562,-567.38465,0.0002469,7]
[331200162,1720131074573,-567.38465,0.0002469,7]
[331200163,1720131074583,-158.03542217,0.00024704,2]
[331200164,1720131074593,-3104.32783023,0.00024705,2]
[331200165,1720131074603,-2204.16917057,0.00024706,2]
[331200166,1720131074612,-151.0,0.00024714,7]
[331200167,1720131074622,-166.76986611,0.00024715,2]
[331200168,1720131074632,-159.56105704,0.00024716,2]
[331200169,1720131074643,-356.56697814,0.00024718,2]
[331200170,1720131074653,-2204.16917057,0.00024723,2]
[331200171,1720131074663,-356.56697814,0.00024733,2]
[331200172,1720131074673,-153.20820484,0.00024755,2]
[331200173,1720131074684,-1001.44305012,0.00024762,2]
[331200174,1720131074694,-159.56105704,0.00024776,2]
[331200175,1720131074704,-2204.16917057,0.00024789,2]
[331200176,1720131074713,-153.20820484,0.00024794,2]
[331200177,1720131074723,-356.56697814,0.00024796,2]
[331200178,1720131074733,-411.9372381,0.00024817,2]
[331200179,1720131074743,-306.0,0.00024817,2]
[331200180,1720131074753,-306.0,0.00024817,2]
[331200181,1720131074763,-153.0,0.00024817,2]
[331200182,1720131074773,-153.0,0.00024817,2]
[331200183,1720131074782,-153.0,0.00024817,2]
[331200184,1720131074792,-153.0,0.00024817,2]
[331200185,1720131074802,-1284.25398879,0.0002484,2]
[331200186,1720131074812,-356.56697814,0.00024841,2]
[331200187,1720131074822,-153.20820484,0.00024844,2]
[331200188,1720131074832,-3104.32783023,0.00024854,2]
[331200189,1720131074842,-153.20820484,0.00024858,2]
[331200190,1720131074852,-153.20820484,0.00024865,2]
[331200191,1720131074862,-159.56105705,0.00024873,2]
[331200192,1720131074872,-158.03542225,0.00024875,2]
[331200193,1720131074882,-356.56697814,0.00024892,2]
[331200194,1720131074891,-1000.0,0.000249,2]
[331200195,1720131074901,-153.20820495,0.00024918,2]
[331200196,1720131074911,-356.56697827,0.0002492,2]
[331200197,1720131074920,-166.76986614,0.00024923,2]
[331200198,1720131074930,-2204.16917057,0.00024936,2]
[331200199,1720131074940,-1001.44305036,0.0002495,2]
[331200200,1720131074950,-150.90270483,0.0002499,2]
[331200201,1720131074960,-2204.16917086,0.00024997,2]
[331200202,1720131074969,-3104.32783041,0.00024998,2]
[331200203,1720131074979,-154.85288975,0.00025,2]
[331200204,1720131074989,-304.67468182,0.00025,2]
[331200205,1720131074999,-1849.60365195,0.00025,2]
[331200206,1720131075008,-1024.47024323,0.00025,2]
[331200207,1720131075020,-341.14076539,0.00025,2]
[331200208,1720131075030,-189.00233978,0.00025,2]
[331200209,1720131075039,-155.35840949,0.00025,2]
[331200210,1720131075049,-300.0,0.00025,5]
[331200211,1720131075061,-300.0,0.00025,3]
[331200212,1720131075071,-411688.717679,0.00025,2]
[331200213,1720131075080,-190.49252362,0.00025,2]
[331200214,1720131075090,-45057.78993708,0.00025,2]
[331200215,1720131075100,-154.83742071,0.00025,2]
[331200216,1720131075110,-151.0,0.00025,7]
[331200217,1720131075119,-151.0,0.00025,7]
[331200218,1720131075129,-151.0,0.00025,7]
[331200219,1720131075138,-151.0,0.00025,7]
[331200220,1720131075148,-151.0,0.00025,7]
[331200221,1720131075157,-151.0,0.00025,7]
[331200222,1720131075167,-151.0,0.00025,7]
[331200223,1720131075178,-151.0,0.00025,7]
[331200224,1720131075189,-151.0,0.00025,7]
[331200225,1720131075198,-151.0,0.00025,7]
[331200226,1720131075208,-151.0,0.00025,7]
[331200227,1720131075218,-151.0,0.00025,7]
[331200228,1720131075227,-151.0,0.00025,7]
[331200229,1720131075236,-418.841123,0.00025,7]
[331200230,1720131075245,-418.841123,0.00025,7]
[331200231,1720131075254,-151.0,0.00025,7]
[331200232,1720131075263,-216.225328,0.00025,7]
[331200233,1720131075273,-216.225328,0.00025,7]
[331200234,1720131075282,-151.0,0.00025,7]
[331200235,1720131075292,-151.0,0.00025,7]
[331200236,1720131075301,-333.800602,0.00025173,2]
[331200237,1720131075311,-151.0,0.00025281,2]
[331200238,1720131075321,-301.33480779,0.000253,10]
[331200239,1720131075331,-1000.0,0.000254,2]
[331200240,1720131075340,-3137.77932824,0.00025501,2]
[331200241,1720131075349,-1000.0,0.000259,2]
[331200242,1720131075361,-1421.6617237,0.00025999,3]
[331200243,1720131075370,-1004862.55839368,0.00026,2]
[331200244,1720131075379,-9592.54368974,0.00026,5]
[331200245,1720131075389,-83170.86100407,0.00026,2]
[331200246,1720131075398,-151.0,0.00026,7]
[331200247,1720131075409,-151.0,0.00026,7]
[331200248,1720131075419,-151.0,0.00026,7]
[331200249,1720131075428,-151.0,0.00026,7]
[331200250,1720131075437,-151.0,0.00026,7]
[331200251,1720131075447,-200.838559,0.00026,7]
[331200252,1720131075456,-200.838559,0.00026,7]
[331200253,1720131075466,-213.678957,0.00026,7]
[331200254,1720131075476,-213.678957,0.00026,7]
[331200255,1720131075485,-151.0,0.00026,7]
[331200256,1720131075494,-567.38465,0.00026,7]
[331200257,1720131075503,-567.38465,0.00026,7]
[331200258,1720131075513,-151.0,0.00026,7]
[331200259,1720131075523,-226.061173,0.00026,7]
[331200260,1720131075532,-151.0,0.00026,7]
[331200261,1720131075541,-151.0,0.00026,7]
[331200262,1720131075550,-151.0,0.00026,7]
[331200263,1720131075561,-151.0,0.00026,7]
[331200264,1720131075571,-151.0,0.00026,7]
[331200265,1720131075583,-151.0,0.00026,7]
[331200266,1720131075592,-151.0,0.00026,7]
[331200267,1720131075602,-151.0,0.00026,7]
[331200268,1720131075613,-151.0,0.00026,7]
[331200269,1720131075623,-196.395045,0.00026,7]
[331200270,1720131075632,-196.395045,0.00026,7]
[331200271,1720131075641,-276.52699,0.00026,7]
[331200272,1720131075652,-276.52699,0.00026,7]
[331200273,1720131075663,-235.773773,0.00026,7]
[331200274,1720131075672,-235.773773,0.00026,7]
[331200275,1720131075683,-160.552976,0.00026,7]
[331200276,1720131075692,-151.0,0.00026,7]
[331200277,1720131075702,-160.552976,0.00026,7]
[331200278,1720131075712,-151.0,0.00026,7]
[331200279,1720131075722,-151.0,0.00026,7]
[331200280,1720131075732,-418.841123,0.00026,7]
[331200281,1720131075742,-418.841123,0.00026,7]
[331200282,1720131075752,-151.0,0.00026,7]
[331200283,1720131075761,-216.225328,0.00026,7]
[331200284,1720131075771,-216.225328,0.00026,7]
[331200285,1720131075780,-151.0,0.00026,7]
[331200286,1720131075875,-298.13301,0.00026,7]
[331200287,1720131075886,-1000.0,0.00026027,30]
[331200288,1720131075896,-153.0,0.00026084,2]
[331200289,1720131075906,-153.0,0.00026084,2]
[331200290,1720131075916,-153.0,0.00026084,2]
[331200291,1720131075926,-153.0,0.00026084,2]
[331200292,1720131075935,-153.0,0.00026084,2]
[331200293,1720131075944,-380.806615,0.00026388,2]
[331200294,1720131075955,-1000.0,0.000264,2]
[331200295,1720131075964,-1000.0,0.00026438,30]
[331200296,1720131075974,-7458.94652043,0.0002649,2]
[331200297,1720131075983,-153.0,0.00026543,2]
[331200298,1720131075993,-206.11478,0.00026543,2]
[331200299,1720131076003,-153.0,0.00026543,2]
[331200300,1720131076012,-206.11478,0.00026543,2]
[331200301,1720131076022,-206.11478,0.00026543,2]
[331200302,1720131076031,-153.0,0.00026543,2]
[331200303,1720131076042,-191.6662851,0.00026575,2]
[331200304,1720131076051,-153.0,0.00026575,2]
[331200305,1720131076062,-2056.56915253,0.000266,2]
[331200306,1720131076071,-1000.0,0.00026849,30]
[331200307,1720131076080,-1000.0,0.000269,2]
[331200308,1720131076090,-153.0,0.00026994,2]
[331200309,1720131076100,-309.0298826,0.00026994,2]
[331200310,1720131076109,-153.0,0.00026994,2]
[331200311,1720131076119,-153.0,0.00027043,2]
[331200312,1720131076128,-877.0,0.00027126,2]
[331200313,1720131076138,-750.0,0.00027195,2]
[331200314,1720131076147,-1000.0,0.0002726,30]
[331200315,1720131076157,-306.0,0.00027317,2]
[331200316,1720131076166,-206.11478,0.00027317,2]
[331200317,1720131076176,-411.9507609,0.00027317,2]
[331200318,1720131076186,-206.11478,0.00027317,2]
[331200319,1720131076196,-306.0,0.00027338,2]
[331200320,1720131076205,-153.0,0.00027338,2]
[331200321,1720131076215,-620.05788087,0.00027352,2]
[331200322,1720131076225,-413.1850094,0.00027365,2]
[331200323,1720131076235,-153.0,0.00027365,2]
[331200324,1720131076245,-153.0,0.00027365,2]
[331200325,1720131076255,-153.0,0.00027365,2]
[331200326,1720131076264,-307.6289612,0.00027365,2]
[331200327,1720131076273,-153.0,0.00027365,2]
[331200328,1720131076282,-153.0,0.00027365,2]
[331200329,1720131076291,-483.21838441,0.00027397,2]
[331200330,1720131076300,-501.89,0.00027397,2]
[331200331,1720131076311,-501.89,0.00027397,2]
[331200332,1720131076320,-501.89,0.00027397,2]
[331200333,1720131076330,-501.89,0.00027397,2]
[331200334,1720131076339,-501.89,0.00027397,2]
[331200335,1720131076349,-501.89,0.00027397,2]
[331200336,1720131076358,-501.89,0.00027397,2]
[331200337,1720131076368,-501.89,0.00027397,2]
[331200338,1720131076378,-501.89,0.00027397,2]
[331200339,1720131076387,-501.89,0.00027397,2]
[331200340,1720131076397,-501.89,0.00027397,2]
[331200341,1720131076406,-501.89,0.00027397,2]
[331200342,1720131076415,-501.89,0.00027397,2]
[331200343,1720131076424,-501.89,0.00027397,2]
[331200344,1720131076434,-501.89,0.00027397,2]
[331200345,1720131076443,-501.89,0.00027397,2]
[331200346,1720131076452,-501.89,0.00027397,2]
[331200347,1720131076462,-501.89,0.00027397,2]
[331200348,1720131076472,-501.89,0.00027397,2]
[331200349,1720131076481,-501.89,0.00027397,2]
[331200350,1720131076491,-501.89,0.00027397,2]
[331200351,1720131076500,-501.89,0.00027397,2]
[331200352,1720131076510,-501.89,0.00027397,2]
[331200353,1720131076520,-501.92716345,0.00027397,2]
[331200354,1720131076530,-400.0,0.00027397,60]
[331200355,1720131076539,-1360.320402,0.00027397,120]
[331200356,1720131076549,-160.0,0.00027397,10]
[331200357,1720131076562,-160.0,0.00027397,10]
[331200358,1720131076574,-227.35665035,0.00027397,10]
[331200359,1720131076584,-175.02536687,0.000274,2]
[331200360,1720131076594,-1000.0,0.000274,2]
[331200361,1720131076605,-43613.02346503,0.000275,2]
[331200362,1720131076615,-1000.0,0.00027671,120]
[331200363,1720131076625,-1225.46128513,0.000279,2]
[331200364,1720131076634,-1000.0,0.000279,2]
[331200365,1720131076647,-31444.87759361,0.0002799,2]
[331200366,1720131076657,-268.10658166,0.00028,2]
[331200367,1720131076668,-504.49555993,0.00028,2]
[331200368,1720131076677,-1000.0,0.00028082,120]
[331200369,1720131076687,-1000.0,0.000284,2]
[331200370,1720131076697,-1000.0,0.00028493,120]
[331200371,1720131076706,-795.4023462,0.000285,2]
[331200372,1720131076715,-160.0,0.00028589,3]
[331200373,1720131076725,-189766.14382079,0.0002877,2]
[331200374,1720131076735,-160.0,0.00028815,4]
[331200375,1720131076746,-1000.0,0.000289,2]